Cogmind - Beta 10.2 @@@ ROGUE MODE // 2020.11.01 @ 18:08:09 // Halloween2020/ForbiddenLore Player: Andru7428 Result: Destroyed by D-53 Grenadier with Mini Grenade Launcher Performance ------------- Evolutions (0) 0 Regions Visited (0) 0 Robots Destroyed (5) 25 Value Destroyed (35) 35 Prototype IDs (0) 0 Alien Tech Used (0) 0 Bonus (0) 0 TOTAL SCORE: 60 Bonus ------- None Cogmind --------- Core Integrity 0/250 Matter 300/300 Energy 250/250 System Corruption 0% Temperature Cool (0) Movement Treading (160) Location -11/Scrapyard Parts ------- > --- POWER (1) -------- Ion Engine > --- PROPULSION (2) --- Light Treads Light Treads > --- UTILITY (2) ------ Small Storage Unit > --- WEAPON (2) ------- (None) > --- INVENTORY (6) ---- Ion Engine Aluminum Leg Aluminum Leg Improved Terrain Scanner Light Assault Rifle Mining Laser Peak State ------------ > --- POWER ------------ Ion Engine > --- PROPULSION ------- Light Treads Light Treads > --- UTILITY ---------- Small Storage Unit > --- WEAPON ----------- Medium Laser Assault Rifle > --- INVENTORY -------- Ion Engine Aluminum Leg Aluminum Leg Light Assault Rifle [Rating: 6] Favorites ----------- Power Ion Engine Engine Ion Engine Propulsion Light Treads Treads Light Treads Utility Small Storage Unit Storage Small Storage Unit Weapon Medium Laser Energy Gun Medium Laser Ballistic Gun Assault Rifle Build | -11 ------- Run | Scr Slots Evolved . | . Power . | . Propulsion . | . Utility . | . Weapon . | . Parts Attached 6 | 6 Power 1 | 1 Engine 1 | 1 Core . | . Reactor . | . Propulsion 2 | 2 Treads 2 | 2 Leg . | . Wheel . | . Hover . | . Flight . | . Utility 1 | 1 Device . | . Storage 1 | 1 Processor . | . Hackware . | . Protection . | . Artifact . | . Weapon 2 | 2 Energy Gun 1 | 1 Energy Cannon . | . Ballistic Gun 1 | 1 Ballistic Cannon . | . Launcher . | . Special Weapon . | . Impact Weapon . | . Slashing Weapon . | . Piercing Weapon . | . Special Melee Weapon . | . Unidentified Prototypes . | . Parts Lost 2 | 2 Power . | . Propulsion . | . Utility . | . Weapon 2 | 2 Highest Loss Streak 2 | 2 Average Slot Usage (%) . | . Naked Turns . | . Heaviest Build 13 | 13 Greatest Support 40 | 40 Greatest Overweight (x) 4 | 4 Average Overweight (x) . | . Largest Inventory Capacity 6 | 6 Average Capacity 5 | 5 Most Carried 6 | 6 Average Carried 4 | 4 Final Capacity 6 | 6 Final Carried 6 | 6 Class Distribution -------------------- None Dominant Class ---------------- None Resources | -11 ----------- Run | Scr Matter Collected 269 | 269 Remotely . | . Salvage Created 77 | 77 Parts 12 | 12 Haulers Intercepted . | . Recyclers Shooed . | . Parts Field Recycled . | . Retrieved Matter . | . Parts Self-Destructed . | . Prevented . | . Kills | -11 ------- Run | Scr Combat Hostiles Destroyed . | . Classes Destroyed 1 | 1 Tunneler 5 | 5 Best Kill Streak 3 | 3 Combat Bots Only . | . Max Kills in Single Turn 1 | 1 Gunslinging . | . Exploded . | . Melee . | . Uniques/NPCs Destroyed . | . Combat | -11 -------- Run | Scr Damage Taken 658 | 658 Core 256 | 256 Absorbed by Shields . | . Core Remaining (%) . | . Volleys Fired 21 | 21 Largest 2 | 2 Hottest 70 | 70 Shots Fired 26 | 26 Gun 26 | 26 Cannon . | . Launcher . | . Special . | . Kinetic 5 | 5 Thermal 21 | 21 Explosive . | . Electromagnetic . | . Robot Hit Streak 8 | 8 Robot Miss Streak 2 | 2 Penetration Max . | . Secondary Targets . | . Shots Hit Robots 19 | 19 Core Hits 5 | 5 Critical Hits . | . Critical Kills . | . Critical Parts Destroyed . | . Melee Attacks . | . Impact . | . Slashing . | . Piercing . | . Sneak Attacks . | . Combat Hostiles . | . Follow-up Attacks . | . Damage Inflicted 237 | 237 Guns 237 | 237 Cannons . | . Explosions . | . Melee . | . Ramming . | . Kinetic 39 | 39 Thermal 198 | 198 Explosive . | . Electromagnetic . | . Impact . | . Slashing . | . Piercing . | . Highest Corruption . | . Average Corruption . | . Corruption Purged . | . Overload Shots . | . Overflow Damage . | . Projectiles . | . Explosions . | . Melee . | . Knockbacks . | . Impact . | . Kinetic . | . Secondary . | . Self-Inflicted Damage . | . Shots . | . Rammed . | . Targets Rammed . | . Kicked . | . Crushed . | . Highest Temperature 60 | 60 Average Temperature 23 | 23 Received Heat Transfer . | . Siege Activations . | . Robots Corrupted . | . Combat Hostiles . | . Parts Fried . | . Impact Corruptions . | . Robots Melted . | . Combat Hostiles . | . Parts Melted 1 | 1 Heat Transferred 592 | 592 Parts Sabotaged . | . Parts Stolen . | . Parts Stripped . | . Power Chain Reactions . | . Missiles Intercepted . | . Alert | -11 ------- Run | Scr Peak Influence 25 | 25 Initial . | . Average 4 | 4 Maximum Alert Level . | . Low Security (%) 100 | 100 Level 1 . | . Level 2 . | . Level 3 . | . Level 4 . | . Level 5 . | . High Security . | . Max Security . | . Squads Dispatched . | . Investigation . | . Extermination . | . Reinforcement . | . Assault . | . Garrison . | . Intercept . | . Construction Impeded . | . Haulers Reinforced . | . Stealth | -11 --------- Run | Scr Distress Signals . | . Communications Jammed . | . Distress Signals . | . Times Spotted 2 | 2 Peak Tracking Total 2 | 2 Tactical Retreats . | . Traps | -11 ------- Run | Scr Traps Triggered . | . Indirectly . | . Trap Hack Attempts . | . Triggered . | . Disarmed . | . Reprogrammed . | . Reused . | . Traps Extracted . | . Installed . | . Triggered . | . Machines | -11 ---------- Run | Scr Machines Disabled . | . Max in Single Turn . | . Machines Sabotaged . | . Garrisons Compromised . | . Overloaded Fab Kills . | . Fab Network Shutdowns . | . Hacking | -11 --------- Run | Scr Machines Accessed . | . Terminals . | . Fabricators . | . Repair Stations . | . Recycling Units . | . Scanalyzers . | . Garrison Access . | . Total Hacks . | . Successful . | . Failed . | . Catastrophic . | . Database Lockouts . | . Manual . | . Terminals . | . Fabricators . | . Repair Stations . | . Recycling Units . | . Scanalyzers . | . Garrison Access . | . Terminal Hacks . | . Fabricator Hacks . | . Repair Station Hacks . | . Recycling Unit Hacks . | . Scanalyzer . | . Garrison Access Hacks . | . Unauthorized Hacks . | . Terminals . | . Fabricators . | . Repair Stations . | . Recycling Units . | . Scanalyzers . | . Garrison Access . | . Data Cores Recovered . | . Used . | . Hacking Detections . | . Full Trace Events . | . Feedback Events . | . Feedback Blocked . | . Robot Schematics Acquired . | . Robots Built . | . Matter . | . Time . | . Total Robot Build Rating . | . Part Schematics Acquired . | . Parts Built . | . Matter . | . Time . | . Total Part Build Rating . | . Parts Repaired . | . Time . | . Parts Recycled . | . Recycled Matter . | . Retrieved Matter . | . Retrieved Components . | . Parts Scanalyzed . | . Part Schematics Acquired . | . Parts Damaged . | . Bothacking | -11 ------------ Run | Scr Used RIF Installer . | . Robots Hacked . | . Non-combat . | . Combat . | . Robot Hacks Applied . | . Relay Couplers Released . | . Robots Rewired . | . Allies Hacked . | . Hacks Repelled . | . Allies | -11 -------- Run | Scr Total Allies . | . Largest Group . | . Highest-Rated Group . | . Highest-Rated Ally . | . Total Orders . | . Ally Attacks . | . Total Damage . | . Kills . | . Allies Corrupted . | . Allies Melted . | . Intel | -11 ------- Run | Scr Robot Analysis Total . | . Derelict Logs Recovered . | . Drone Launches . | . Drone Recoveries . | . Exploration | -11 ------------- Run | Scr Turns Passed 1590 | 1590 Spaces Moved 437 | 437 Core 79 | 79 Treads 358 | 358 Legs . | . Wheels . | . Hover . | . Flight . | . Fastest Speed 50 | 50 Average Speed 174 | 174 Slowest Speed 250 | 250 Overloaded Moves . | . Propulsion Burnouts . | . Robots Hopped . | . Cave-ins Triggered . | . Exploration Rate (%) 41 | 41 Regions Visited . Branch Regions . Pre-discovered Areas . | . Known Exits Taken . | . Unknown Exits Taken . | . Scrap Searched . | . Spaces Dug . | . Terrain Destroyed . | . Melee . | . Projectile . | . AOE . | . Terrain Rammed . | . Walls Destroyed . | . Machines Disabled . | . Actions | -11 --------- Run | Scr Total 1236 | 1236 Wait 765 | 765 Move 437 | 437 Hop . | . Pick Up 7 | 7 Fast Attach 5 | 5 Attach 1 | 1 Detach . | . Swap . | . Drop . | . Fire 21 | 21 Melee . | . Ram . | . Kick . | . Crush . | . Escape Stasis . | . Rewire . | . Trap . | . Miscellaneous . | . Route ------- -11/Scrapyard (discovered 1 exit: [*Mat]) History --------- Turn | Location | Event 33 | -11/Scrapyard | Discovered new exit (range 15) 1575 | -11/Scrapyard | Assembled infested the area 1586 | -11/Scrapyard | Core integrity fell below 50% 1588 | -11/Scrapyard | Core integrity fell below 20% 1591 | -11/Scrapyard | Destroyed by D-53 Grenadier with Mini Grenade Launcher Last Messages --------------- 00265_ T-07 Excavator is excavating. 00330_ K-01 Serf collects debris. 00419_ T-07 Excavator is excavating. 00601_ K-01 Serf collects debris. 01041_ T-07 Excavator is excavating. 01354_ K-01 Serf collects debris. 01373_ T-07 Excavator is excavating. 01414_ Acquired Imp. Terrain Scanner. 01450_ T-07 Excavator is excavating. 01575_ ALERT: Infestation in the scrapyard, dispatching Demolisher response squad. [Achievement: Curiosity Killed The Cat] 01575_ C-30 ARC bursts open, deploying its payload. 01575_ D-53 Grenadier unfolds itself. 01582_ The unstable cave ceiling collapses. 01582_ Med. Laser destroyed. 01584_ Assault Rifle destroyed. 01585_ K-01 Serf collects debris. 01586_ K-01 Serf destroyed. 01588_ The unstable cave ceiling collapses. Map ----- +----------------------------------------------------+ | ????????????????# #???# #?###??????????????????? | | ???????????????? #???# #??????????????????????? | | ????????????????# #???# #??????????????????????? | | ????????????????# #???# #??????????????????????? | | ????????????????# #???# #??????????????????????? | | ????????????????# #???# #??????????????????????? | | ????????????????# #???# #??????????????????????? | | ????############# #???# #??????????????????????? | | ???# #???# #??????????????????????? | | ???# # #???# #??????????????????????? | | ???# # #???# #??????????????????????? | | ???# # ##### #?##???#???????????????? | | ???# # #? ?? #???????????????? | | ???# # # # #???????????????? | | ???##################### # #???????????????? | | ???????????????????????# #???????????????? | | ???????????????????????# # #???????????????? | | ???????????????????????# #?######???????????????? | | ?????????????????#######r ####???????????????????? | | ???????########### # #?????????????####### | | ???????# # #?????######??# | | ???#???# ####### #??# | | ??## ### #??# | | ??# #??# | | ??# = ## ### #??# | | ??###### @ d # ### ##??# | | ???????# = # d ## #?# #???# | | ???????# ## # #?# #???# | | ???????#### ####### ## #?# #???##### # | | ??????????# # ### ### #?# ####### | | ??????????#! # ####### # #?# | | ??????????# %= ## # #?# | | ??????????# # ## ############ ### | | ??????????# # ## #????# ## ## | | ??????????# # ## #????# # | | ???######?# ######### #????# # | | ???# #!=#???????? #????# # | | ???# #%*#????????? #????# # | | ???# #?????????? #????# # | | ???# # ############# ## ###### # | | ???# # # | | ???# ?# ################### | | ???######?##################?????????????????##### | | ?????????????????????????????????????????????????? | | ?????????????????????????????????????????????????? | | ?????????????????????????????????????????????????? | | ?????????????????????????????????????????????????? | | ?????????????????????????????????????????????????? | | ?????????????????????????????????????????????????? | | ?????????????????????????????????????????????????? | +----------------------------------------------------+ Best States ------------- Heat Dissipation 25 Energy Generation 10 Energy Capacity 250 Matter Stores 300 Matter Capacity 300 Sight Range 16 Terrain Scan Density 10 Evasion (%) 40 Recoil Reduction 2 Item Schematics ----------------- None Robot Schematics ------------------ None Fabricated ------------ Nothing Alien Tech Used ----------------- None Achievements -------------- Curiosity Killed The Cat Challenges ------------ None Game ------ Seed OverloadShrapnelSystem Manual? 0 Play Time 00:06:04 Cumulative 114.0 hours Start 2020.11.01 @ 18:05:07 End 2020.11.01 @ 18:08:09 Sessions 0 Manual Loads 0 Difficulty Rogue Special Mode Halloween2020/ForbiddenLore Game No. 81 Rogue 81 Adventurer 0 Explorer 0 Win Type - Total 1 Types 1/0/0/0/0/0/0/0/0 Lore% 61 Gallery% 68 Achievement% 55 Wizard Run 0 Options --------- ASCII 0 Keyboard 1 Movement Numpad Keybinds 0 Fullscreen 2 Font 18/Smallcaps Map View 76x50 Tactical HUD 1 Map Filters NONE Filters NONE Steam 1 RUN: e7181ad9-0347-42ad-b56c-c8eec56a6987